bitfinex-derivatives/quotes_ETHF0:USTF0_20241207
["timestamp","ask_amount","ask_price","bid_price","bid_amount"]
[1733614003488,0.4015,4007.1,4007.0,0.95792]
[1733614003786,0.43624,4007.8,4007.1,0.17452]
[1733614003988,0.3803,4007.5,4007.1,0.55362]
[1733614004581,0.17451,4007.3,4007.1,0.55362]
[1733614005382,0.3803,4007.5,4007.1,0.55362]
[1733614005590,0.5548,4007.5,4007.4,0.89934114]
[1733614008790,0.17453,4006.8,4006.7,3.2078]
[1733614008989,0.17453,4006.8,4006.7,5.65448228]
[1733614009389,0.17453,4006.8,4006.7,2.44668228]
[1733614015094,0.17453,4006.8,4006.7,2.62121228]
[1733614022203,0.17454,4006.7,4006.6,4.08161304]
[1733614022503,0.17454,4006.7,4006.6,6.35975532]
[1733614023101,0.17454,4006.7,4006.6,6.53429532]
[1733614023702,0.4098,4007.3,4006.6,6.35975532]
[1733614023904,0.58431,4007.3,4007.2,0.89934114]
[1733614025908,0.58431,4007.3,4007.2,1.07385114]
[1733614026115,0.58431,4007.3,4007.2,0.89934114]
[1733614028008,0.58431,4007.3,4007.2,1.07385114]
[1733614029014,0.58431,4007.3,4007.2,1.46075114]
[1733614032511,0.58431,4007.3,4007.2,4.66855114]
[1733614033114,6.1491223,4007.9,4007.2,9.05511418]
[1733614033321,0.5727,4007.6,4007.5,0.1745]
[1733614034917,0.5727,4007.6,4007.5,1.07384114]
[1733614035123,0.5727,4007.6,4007.5,4.98091418]
[1733614035722,0.5727,4007.6,4007.5,4.08157304]
[1733614035925,0.5727,4007.6,4007.5,4.98091418]
[1733614037017,0.5727,4007.6,4007.5,1.07384114]
[1733614038829,3.3395223,4007.6,4007.5,0.89934114]
[1733614039022,3.51443259,4007.6,4007.5,0.89934114]
[1733614040726,0.5727,4007.6,4007.5,0.89934114]
[1733614041420,0.58257665,4007.6,4007.5,0.89934114]
[1733614042124,4.51223055,4007.6,4007.5,0.89934114]
[1733614042632,0.58257665,4007.6,4007.5,0.89934114]
[1733614042924,4.51223055,4007.6,4007.5,0.89934114]
[1733614043327,0.58257665,4007.6,4007.5,0.89934114]
[1733614043521,4.50492176,4007.6,4007.5,0.89934114]
[1733614044630,0.58257665,4007.6,4007.5,0.89934114]
[1733614044926,0.17451,4007.3,4007.2,0.8224]
[1733614045130,0.17451,4007.3,4007.2,1.72174114]
[1733614045521,3.11626498,4007.3,4007.2,1.72174114]
[1733614047433,0.17451,4007.3,4007.2,1.72174114]
[1733614047831,3.1166403,4007.3,4007.2,1.72174114]
[1733614048427,3.1166403,4007.3,4007.2,5.63675213]
[1733614048428,0.17451,4007.3,4007.2,5.63675213]
[1733614048828,0.17451,4007.3,4007.2,1.72174114]
[1733614049229,0.17451,4007.3,4007.2,5.63675213]
[1733614050526,0.17451,4007.3,4007.2,1.72174114]
[1733614051837,3.1166403,4007.3,4007.2,1.72174114]
[1733614053339,0.17451,4007.3,4007.2,5.63675213]
[1733614053934,0.17451,4007.3,4007.2,1.72174114]
[1733614054139,3.1166403,4007.3,4007.2,1.72174114]
[1733614055845,0.17451,4007.3,4007.2,1.72174114]
[1733614060542,3.11709082,4007.3,4007.2,1.72174114]
[1733614062353,0.17451,4007.3,4007.2,1.72174114]
[1733614064251,3.11735239,4007.3,4007.2,1.72174114]
[1733614064658,0.17451,4007.3,4007.2,1.72174114]
[1733614066858,3.11745998,4007.3,4007.2,1.72174114]
[1733614067359,0.17451,4007.3,4007.2,1.72174114]
[1733614069963,4.09685511,4007.3,4007.2,1.72174114]
[1733614071461,0.17451,4007.3,4007.2,1.72174114]
[1733614071659,3.11780208,4007.3,4007.2,1.72174114]
[1733614073360,3.11770832,4007.3,4007.2,1.72174114]
[1733614073756,0.17451,4007.3,4007.2,1.72174114]
[1733614074765,3.11774574,4007.3,4007.2,1.72174114]
[1733614076766,0.17451,4007.3,4007.2,1.72174114]
[1733614077068,3.11762136,4007.3,4007.2,1.72174114]
[1733614077361,0.17451,4007.3,4007.2,1.72174114]
[1733614077764,3.11763489,4007.3,4007.2,1.72174114]
[1733614078161,0.17451,4007.3,4007.2,1.72174114]
[1733614080164,0.17451,4007.3,4007.2,0.409]
[1733614080365,0.17451,4007.2,4007.1,0.89934114]
[1733614080566,3.77031,4007.2,4007.1,0.89934114]
[1733614080868,8.66790924,4007.2,4007.1,0.89934114]
[1733614081175,3.77031,4007.2,4007.1,0.89934114]
[1733614082063,8.67638755,4007.2,4007.1,0.89934114]
[1733614084176,3.77031,4007.2,4007.1,0.89934114]
[1733614086368,8.67666543,4007.2,4007.1,0.89934114]
[1733614088873,3.77031,4007.2,4007.1,0.89934114]
[1733614089977,8.67528296,4007.2,4007.1,0.89934114]
[1733614090173,3.77031,4007.2,4007.1,0.89934114]
[1733614090571,8.67528296,4007.2,4007.1,0.89934114]
[1733614091370,3.77031,4007.2,4007.1,0.89934114]
[1733614091567,8.67528296,4007.2,4007.1,0.89934114]
[1733614097673,3.77031,4007.2,4007.1,0.89934114]
[1733614100376,3.38231,4007.2,4007.1,0.89934114]
[1733614101083,8.28728296,4007.2,4007.1,0.89934114]
[1733614102482,7.30478354,4007.2,4007.1,0.89934114]
[1733614102785,3.38231,4007.2,4007.1,0.89934114]
[1733614105977,3.38231,4007.2,4007.1,1.27824114]
[1733614107688,6.3241519,4007.2,4007.1,1.27824114]
[1733614108882,3.38231,4007.2,4007.1,1.27824114]
[1733614109187,6.32426568,4007.2,4007.1,1.27824114]
[1733614109388,3.38231,4007.2,4007.1,1.27824114]
[1733614109577,6.32419228,4007.2,4007.1,1.27824114]
[1733614110082,0.17451,4007.2,4007.1,1.27824114]
[1733614110277,3.11639228,4007.2,4007.1,1.27824114]
[1733614110986,0.17451,4007.2,4007.1,1.27824114]
[1733614112485,3.11639228,4007.2,4007.1,1.27824114]
[1733614112788,0.17451,4007.2,4007.1,1.27824114]
[1733614125199,2.94188228,4007.4,4007.1,1.27824114]
[1733614125390,2.94188228,4007.5,4007.1,5.19325213]
[1733614125596,0.17451,4007.3,4007.2,4.08952099]
[1733614126201,2.94188228,4007.6,4007.2,3.91501099]
[1733614126501,3.92247354,4007.8,4007.7,0.17449]
[1733614126502,0.17449,4007.8,4007.7,0.17449]
[1733614127392,0.17449,4007.8,4007.7,0.58149]
[1733614129094,0.17449,4007.9,4007.8,0.17448]
[1733614129910,0.17449,4007.9,4007.8,1.07382114]
[1733614130800,0.17449,4007.9,4007.8,0.17448]
[1733614131000,0.17449,4007.9,4007.8,1.07382114]
[1733614133001,3.11459673,4007.9,4007.8,1.07382114]
[1733614133308,3.11458673,4007.9,4007.8,1.07382114]
[1733614136310,3.11339994,4007.9,4007.8,1.07382114]
[1733614136504,0.17448,4007.9,4007.8,1.07382114]
[1733614137108,3.92014231,4008.1,4007.8,0.89934114]
[1733614137303,0.17448,4008.1,4008.0,0.17448]
[1733614138311,3.11289003,4008.1,4008.0,0.55948]
[1733614138512,0.17448,4008.1,4008.0,0.55948]
[1733614139815,3.11283004,4008.1,4008.0,0.55948]
[1733614141212,0.17448,4008.1,4008.0,0.55948]
[1733614141609,3.11298104,4008.1,4008.0,0.55948]
[1733614141806,3.11298104,4008.1,4008.0,0.385]
[1733614142009,3.11298104,4008.1,4008.0,0.55948]
[1733614142720,0.17448,4008.1,4008.0,0.55948]
[1733614143412,3.92014231,4008.3,4007.5,3.2078]
[1733614143613,0.98298,4008.0,4007.9,0.89934114]
[1733614144717,0.17449,4007.8,4007.7,0.17449]
[1733614145015,0.17449,4007.8,4007.7,1.07383114]
[1733614147316,3.11337258,4007.8,4007.7,1.07383114]
[1733614147616,3.11337258,4007.8,4007.7,0.89934114]
[1733614148711,2.93888258,4007.8,4007.7,0.89934114]
[1733614149212,2.93888258,4007.8,4007.7,1.07383114]
[1733614149413,2.93888258,4007.8,4007.7,0.89934114]
[1733614149811,3.11337258,4007.8,4007.7,0.89934114]
[1733614150411,3.11337258,4007.8,4007.7,1.07383114]
[1733614150812,2.93888258,4007.8,4007.7,1.07383114]
[1733614153016,3.11337258,4007.8,4007.7,1.07383114]
[1733614153615,2.93888258,4007.8,4007.7,1.07383114]
[1733614153817,0.17449,4007.8,4007.7,1.07383114]
[1733614154823,3.11534278,4007.8,4007.7,1.07383114]
[1733614155720,0.17449,4007.8,4007.7,1.07383114]
[1733614156024,3.11553249,4007.8,4007.7,1.07383114]
[1733614157123,2.94104249,4007.8,4007.7,1.07383114]
[1733614157919,4.09462231,4008.1,4007.5,3.90618117]
[1733614158121,2.94116333,4007.8,4007.7,0.17449]
[1733614161419,0.17448,4008.1,4007.7,1.79868228]
[1733614161420,2.94116333,4007.9,4007.7,1.79868228]
[1733614161619,2.94116333,4008.0,4007.8,3.9905]
[1733614161922,2.94116333,4008.1,4008.0,0.17448]
[1733614162122,0.17446,4008.4,4008.1,0.17448]
[1733614162123,2.94116333,4008.2,4008.1,0.17448]
[1733614162419,2.94116333,4008.2,4008.0,0.89934114]
[1733614162420,2.94116333,4008.3,4008.2,0.17447]
[1733614166234,2.94116333,4008.3,4008.0,0.89934114]
[1733614166235,2.94116333,4008.3,4008.0,3.90618117]
[1733614166426,6.32343333,4008.3,4008.2,0.89934114]
[1733614167237,6.32343333,4008.3,4008.2,1.07381114]
[1733614167831,3.38227,4008.3,4008.2,1.07381114]
[1733614168330,3.2078,4008.3,4008.2,1.07381114]
[1733614168934,6.14896333,4008.3,4008.2,1.07381114]
[1733614170330,6.14871762,4008.3,4008.2,1.07381114]
[1733614170531,6.32318762,4008.3,4008.2,1.07381114]
[1733614171131,6.14871762,4008.3,4008.2,1.07381114]
[1733614172133,6.32318762,4008.3,4008.2,1.07381114]
[1733614172435,3.38227,4008.3,4008.2,1.07381114]
[1733614174434,0.17447,4008.3,4008.2,1.07381114]
[1733614175735,3.11538762,4008.4,4008.3,0.17447]
[1733614176240,3.11538762,4008.4,4008.3,0.58557]
[1733614176435,3.11538762,4008.4,4008.3,0.96937]
[1733614177043,0.17447,4008.4,4008.3,0.96937]
[1733614178942,2.94091762,4008.5,4008.4,0.17446]
[1733614179141,2.94091762,4008.6,4008.5,0.17446]
[1733614179336,2.94091762,4008.6,4008.5,1.07380114]
[1733614179538,3.11536762,4008.6,4008.5,1.07380114]
[1733614180345,6.14871762,4008.7,4008.5,0.89934114]
[1733614180542,6.32316762,4008.7,4008.6,0.17445]
[1733614186846,6.32316762,4008.7,4008.6,0.16210758]
[1733614188947,6.32316762,4008.7,4008.6,1.06144872]
[1733614190748,3.11536762,4008.7,4008.6,1.06144872]
[1733614193149,2.94091762,4008.7,4008.6,1.06144872]
[1733614194244,2.93850213,4008.8,4008.6,0.89934114]
[1733614194439,6.32074213,4008.9,4008.6,0.89934114]
[1733614194650,6.32074862,4008.9,4008.8,0.17445]
[1733614194861,1.26250862,4008.9,4008.8,1.07379114]
[1733614195046,1.43693862,4009.2,4009.1,0.17443]
[1733614195243,1.43693862,4009.2,4009.1,1.07377114]
[1733614195244,0.17443,4009.2,4009.1,1.07377114]
[1733614195948,0.17443,4009.2,4009.1,1.47937114]
[1733614200552,0.17443,4009.2,4009.1,1.30494114]
[1733614200950,0.17443,4009.2,4009.1,1.47937114]
[1733614201249,0.17444,4008.9,4008.8,0.3856]
[1733614201453,0.17445,4008.7,4008.6,0.82245]
[1733614201651,0.17445,4008.7,4008.6,1.72179114]
[1733614202657,0.17445,4008.7,4008.6,1.07379114]
[1733614202955,0.17445,4008.7,4008.6,1.72179114]
[1733614203150,0.17445,4008.7,4008.6,1.54734114]
[1733614204653,0.3746,4008.8,4008.6,1.54734114]
[1733614204851,0.17445,4008.7,4008.6,1.72179114]
[1733614205054,0.17445,4008.7,4008.6,1.54734114]
[1733614205552,0.17445,4008.7,4008.6,0.648]
[1733614205851,0.17445,4008.7,4008.6,1.54734114]
[1733614206251,0.17445,4008.6,4008.5,0.4029]
[1733614206447,0.17446,4008.4,4008.3,0.7923]
[1733614208149,0.17446,4008.4,4008.3,1.69164114]
[1733614208353,0.17446,4008.4,4008.3,1.28914114]
[1733614218159,3.91800284,4008.6,4008.3,1.28914114]
[1733614218363,0.17446,4008.5,4008.4,0.55086]
[1733614218665,0.17446,4008.5,4008.4,1.45020114]
[1733614219458,0.17446,4008.5,4008.4,1.27574114]
[1733614220866,3.91800284,4008.6,4008.1,0.3788]
[1733614221165,0.17447,4008.2,4008.1,0.3788]
[1733614225571,0.17447,4008.2,4008.1,1.27814114]
[1733614253194,0.17447,4008.2,4008.1,5.18205763]
[1733614253404,0.17447,4008.2,4008.1,1.27814114]
[1733614253601,0.17447,4008.2,4008.1,5.18205763]
[1733614254906,3.11763071,4008.2,4008.1,5.18205763]
[1733614255203,0.17447,4008.2,4008.1,5.18205763]
[1733614258302,0.17447,4008.2,4008.1,0.89934114]
[1733614258502,0.17447,4008.2,4008.1,4.80325763]
[1733614258503,4.47045524,4008.2,4008.1,4.80325763]
[1733614259108,4.47045524,4008.2,4008.1,0.89934114]
[1733614260094,0.55157,4008.2,4008.1,0.89934114]
[1733614260595,4.47727773,4008.2,4008.1,0.89934114]
[1733614260806,4.47724398,4008.2,4008.1,0.89934114]
[1733614261107,0.55157,4008.2,4008.1,0.89934114]
[1733614262906,0.55157,4008.2,4008.1,1.27564114]
[1733614264917,0.17447,4008.2,4008.1,0.3763]
[1733614265208,0.17447,4008.2,4008.1,0.50104738]
[1733614265396,0.17447,4008.2,4008.1,6.36636043]
[1733614265592,0.17447,4008.2,4008.1,0.50104738]
[1733614265997,3.11866779,4008.2,4008.1,6.36620034]
[1733614266203,0.17447,4008.2,4008.1,0.50104738]
[1733614266805,0.17447,4008.2,4008.1,6.36620034]
[1733614266998,3.11863773,4008.2,4008.1,6.36620034]
[1733614268001,2.94416773,4008.6,4008.1,10.9078386]
[1733614268203,2.94416773,4008.8,4008.5,1.07380114]
[1733614268403,2.94416773,4008.9,4008.7,0.89934114]
[1733614268700,2.94416773,4008.9,4008.8,5.0572539]
[1733614268701,3.11860773,4008.9,4008.8,5.0572539]
[1733614269500,0.17444,4008.9,4008.8,5.0572539]
[1733614270010,0.17444,4008.9,4008.8,1.1502256]
[1733614270206,0.17444,4008.9,4008.8,5.0572539]
[1733614270407,0.17444,4008.9,4008.8,1.1502256]
[1733614272104,3.2078,4009.3,4008.8,2.04956674]
[1733614272307,3.2078,4009.3,4009.2,0.89934114]
[1733614272506,3.2078,4009.3,4009.2,1.07377114]
[1733614273104,0.17441,4009.6,4009.2,1.07377114]
[1733614273304,3.2078,4009.8,4009.5,1.07375114]
[1733614273508,3.2078,4009.8,4009.6,0.88060071]
[1733614273705,3.2078,4009.8,4009.7,0.1246976]
[1733614274108,3.2078,4009.8,4009.7,0.2991076]
[1733614274314,0.1744,4009.8,4009.7,0.1246976]
[1733614274612,0.1744,4009.8,4009.7,1.02403874]
[1733614275808,3.2078,4010.4,4009.7,1.02403874]
[1733614276117,3.38218,4010.4,4010.3,0.89934114]
[1733614281706,3.38218,4010.4,4009.7,0.1246976]
[1733614281707,3.2078,4010.4,4009.7,0.1246976]
[1733614281912,0.1744,4009.8,4009.7,0.1246976]
[1733614283019,0.1744,4009.9,4009.7,0.1246976]
[1733614283213,0.1744,4009.8,4009.7,0.1246976]
[1733614287516,0.1744,4009.8,4009.7,0.2991076]
[1733614287922,0.1744,4010.0,4009.9,0.1744]
[1733614288126,3.2078,4010.4,4009.9,1.92337366]
[1733614288425,3.2078,4010.4,4010.0,1.18228827]
[1733614288721,3.2078,4010.4,4010.2,0.17438]
[1733614288722,0.17438,4010.3,4010.2,0.17438]
[1733614289719,0.17438,4010.3,4010.2,1.97306228]
[1733614290225,0.17438,4010.3,4010.2,2.09774434]
[1733614290421,3.2078,4010.9,4010.2,1.92336434]
[1733614290717,0.17436,4010.7,4010.6,0.17437]
[1733614290924,0.17436,4010.7,4010.6,1.72071114]
[1733614292316,0.17436,4010.7,4010.6,1.54634114]
[1733614292922,0.17436,4010.7,4010.6,0.3823]
[1733614293222,0.17437,4010.6,4010.5,0.647]
[1733614294319,0.17437,4010.5,4010.4,1.79868228]
[1733614295726,0.17437,4010.5,4010.4,1.92335812]
[1733614304524,0.17437,4010.5,4010.4,1.02401698]
[1733614304720,0.17437,4010.5,4010.4,1.92335812]
[1733614305929,0.17437,4010.5,4010.4,0.12467584]
[1733614306125,5.0,4010.5,4010.0,0.89934114]
[1733614306330,3.2078,4010.6,4009.2,1.4553]
[1733614306531,2.94416773,4010.7,4009.2,2.52907114]
[1733614306532,0.17442,4009.5,4009.2,2.52907114]
[1733614306733,0.17442,4009.4,4009.2,2.35464114]
[1733614307834,0.17442,4009.3,4009.2,2.60698228]
[1733614308035,0.17442,4009.3,4009.2,3.25398228]
[1733614308733,0.17442,4009.3,4009.2,1.4553]
[1733614308931,0.17442,4009.3,4009.2,3.25398228]
[1733614309733,3.2078,4009.8,4009.2,3.25398228]
[1733614309929,3.3822,4009.8,4009.7,0.89934114]
[1733614312833,3.3822,4009.8,4009.2,1.70764114]
[1733614312834,0.17442,4009.3,4009.2,2.35464114]
[1733614313130,0.17442,4009.4,4009.2,2.52907114]
[1733614313338,0.17442,4009.5,4009.3,0.17442]
[1733614313639,0.17442,4009.4,4009.2,2.52907114]
[1733614313937,0.17442,4009.3,4009.2,2.35464114]
[1733614315632,0.17442,4009.4,4009.2,3.25398228]
[1733614315845,0.17441,4009.6,4009.4,0.17441]
[1733614316048,0.17441,4009.6,4009.2,3.25398228]
[1733614316049,0.17441,4009.6,4009.5,0.89934114]
[1733614322543,0.10638082,4009.6,4009.3,0.647]
[1733614322743,0.17442,4009.4,4009.3,0.647]
[1733614323541,0.28080082,4009.4,4009.3,0.647]
[1733614323849,0.17442,4009.3,4009.2,2.60698228]
[1733614324157,0.17442,4009.3,4009.2,3.25398228]
[1733614324652,0.28080082,4009.3,4009.2,3.25398228]
[1733614327744,0.28080082,4009.3,4009.2,2.60698228]
[1733614330550,0.10638082,4009.3,4009.2,2.60698228]
[1733614330752,0.10638082,4009.3,4009.2,2.78141228]
[1733614331253,0.28080082,4009.3,4009.2,2.60698228]
[1733614333154,0.10638082,4009.3,4009.2,2.78141228]
[1733614345864,0.10638082,4009.3,4008.8,3.89760687]
[1733614346168,0.10638082,4009.3,4008.7,5.84641031]
[1733614346169,0.17445,4008.8,4008.7,0.4116]
[1733614346564,0.28083082,4008.8,4008.7,0.4116]
[1733614347756,0.28083082,4008.8,4008.7,1.31094114]
[1733614350770,0.28083082,4008.8,4008.7,1.48539114]
[1733614350970,0.10638082,4008.8,4008.7,1.48539114]
[1733614352470,0.10638082,4008.8,4008.7,2.38473228]
[1733614352782,0.10638082,4008.8,4008.7,8.23114259]
[1733614352969,0.10638082,4008.8,4008.7,10.17994602]
[1733614353168,0.10638082,4008.8,4008.7,2.38473228]
[1733614353477,0.10638082,4008.8,4008.7,1.48539114]
[1733614353862,0.10638082,4008.8,4008.7,2.38473228]
[1733614354067,0.10638082,4008.8,4008.7,10.17994602]
[1733614357468,0.10638082,4008.8,4008.7,2.38473228]
[1733614357974,0.10638082,4008.8,4008.7,10.19901523]
[1733614359673,0.10638082,4008.8,4008.7,10.19924181]
[1733614359873,0.10638082,4008.8,4008.7,2.38473228]
[1733614360971,8.2e-07,4008.8,4008.7,2.38473228]
[1733614361171,2.93456064,4009.6,4009.5,0.17441]
[1733614361373,2.93456064,4009.6,4009.5,1.07375114]
[1733614366183,3.33006064,4009.7,4009.6,0.17441]
[1733614366682,0.3955,4009.7,4009.6,3.38221]
[1733614366882,0.3955,4009.7,4009.6,0.17441]
[1733614367272,3.33006064,4009.7,4009.6,0.17441]
[1733614368683,0.3955,4009.7,4009.6,0.17441]
[1733614369587,4.8909344,4010.2,4009.6,3.2078]
[1733614369588,2.93456064,4009.9,4009.6,3.2078]
[1733614369786,2.93456064,4010.0,4009.9,0.1744]
[1733614369987,2.93456064,4010.0,4009.9,1.48804114]
[1733614370179,2.93923364,4010.1,4009.9,1.31364114]
[1733614370381,2.93923364,4010.1,4010.0,0.17439]
[1733614370586,3.73383364,4010.2,4010.1,0.17439]
[1733614371686,0.7946,4010.2,4010.1,0.17439]
[1733614372089,3.91274752,4010.4,4009.9,1.31364114]
[1733614372387,0.4053,4010.4,4010.3,1.07372114]
[1733614372582,4.49725348,4010.4,4010.3,0.17438]
[1733614372884,4.49725348,4010.4,4010.3,1.07372114]
[1733614373990,4.32287348,4010.4,4010.3,1.07372114]
[1733614377090,3.91757348,4010.5,4010.4,0.17438]
[1733614377287,3.91757348,4010.5,4010.3,1.79868228]
[1733614377288,2.9369142,4010.6,4010.5,0.17437]
[1733614377486,3.3145142,4010.8,4010.4,0.4136]
[1733614377682,3.3145142,4010.8,4010.7,1.07370114]
[1733614377885,0.3776,4010.8,4010.7,1.07370114]
[1733614378587,3.31312064,4010.8,4010.7,1.07370114]
[1733614379488,0.3776,4010.8,4010.7,1.07370114]
[1733614379992,3.31312064,4010.8,4010.7,1.07370114]
[1733614380390,0.3776,4010.8,4010.7,1.07370114]
[1733614382687,0.3776,4010.8,4009.2,10.64335832]
[1733614382890,6.14332064,4010.6,4009.7,3.90696308]
[1733614383087,6.14332064,4010.6,4009.2,7.81392617]
[1733614383088,0.17438,4010.2,4010.1,3.38219]
[1733614383587,0.1744,4009.9,4009.7,0.652]
[1733614383793,6.90462064,4010.1,4009.8,0.1744]
[1733614383989,0.1744,4009.9,4009.8,0.1744]
[1733614384187,0.1744,4009.9,4009.8,1.07374114]
[1733614386486,0.17439,4010.0,4009.9,0.1744]
[1733614387694,0.7613,4010.1,4009.8,0.89934114]
[1733614387897,2.93552064,4010.4,4009.8,4.10714114]
[1733614388089,3.32952064,4010.6,4010.1,0.89934114]
[1733614388286,3.50389064,4010.6,4010.5,0.89934114]
[1733614389896,3.32952064,4010.6,4010.5,0.89934114]
[1733614390196,3.32952064,4010.6,4010.5,1.07371114]
[1733614390892,3.50389064,4010.6,4010.5,0.89934114]
[1733614391097,0.56837,4010.6,4010.5,0.89934114]
[1733614391988,3.5020462,4010.6,4010.5,0.89934114]
[1733614392396,3.3276762,4010.6,4010.5,0.89934114]
[1733614392599,2.9336762,4010.6,4010.5,0.89934114]
[1733614392793,6.1414762,4010.7,4010.6,0.17437]
[1733614392990,4.50183348,4010.9,4010.7,0.17436]
[1733614392991,3.91757348,4010.8,4010.7,0.17436]
[1733614393390,0.4099,4010.9,4010.6,0.3835]
[1733614393590,4.50182348,4010.9,4010.8,0.89934114]
[1733614395506,0.58425,4010.9,4010.8,0.89934114]
[1733614396103,0.17436,4010.7,4010.6,0.3835]
[1733614396609,0.17437,4010.6,4010.5,1.07371114]
[1733614396793,3.10958776,4010.6,4010.5,1.07371114]
[1733614397703,2.93521776,4010.6,4010.5,0.89934114]
[1733614397899,3.10958776,4010.6,4010.5,0.89934114]
[1733614398405,0.17437,4010.6,4010.5,0.89934114]
[1733614400301,3.91757348,4010.8,4010.5,0.89934114]
[1733614400497,0.17437,4010.6,4010.5,1.07371114]
[1733614400702,3.11091506,4010.6,4010.5,1.07371114]
[1733614401209,2.93654506,4010.6,4010.5,1.07371114]
[1733614401408,2.93654506,4010.7,4010.6,0.17437]
[1733614401608,2.93654506,4010.7,4010.6,0.94247]
[1733614401801,2.93654506,4010.8,4010.7,0.17436]
[1733614402007,2.93654506,4010.8,4010.6,0.7681]
[1733614402008,2.93654506,4011.0,4010.9,0.17435]
[1733614402203,3.2078,4011.2,4010.9,0.17435]
[1733614402204,2.93654506,4011.1,4011.0,0.17435]
[1733614402500,3.11089506,4011.1,4011.0,0.55905]
[1733614403411,0.17435,4011.1,4011.0,0.55905]
[1733614406003,0.17435,4011.1,4011.0,0.3847]
[1733614410610,0.17435,4011.1,4011.0,0.55905]
[1733614411215,2.93654506,4011.2,4011.1,0.17435]
[1733614411216,3.11088506,4011.2,4011.1,0.17435]
[1733614411412,2.93654506,4011.3,4011.1,1.54734114]
[1733614411714,4.8909344,4011.7,4011.2,2.19058228]
[1733614411715,2.93654506,4011.7,4011.2,2.19058228]
[1733614411923,8.0987344,4012.2,4011.6,1.97300228]
[1733614411924,3.2078,4012.2,4011.6,1.97300228]
[1733614412214,3.3821,4012.2,4012.1,0.89934114]
[1733614412618,6.31639702,4012.2,4012.1,0.89934114]
[1733614412815,6.14209702,4012.2,4012.1,0.89934114]
[1733614413217,3.2078,4012.2,4012.1,1.07364114]
[1733614413412,0.17429,4012.4,4012.1,0.89934114]
[1733614413716,3.31569702,4012.8,4012.1,0.89934114]
[1733614414022,0.17429,4012.5,4012.4,0.89934114]
[1733614421332,0.17428,4012.5,4012.4,0.89934114]
[1733614421929,3.2078,4012.9,4012.4,0.89934114]
[1733614422240,0.17427,4012.8,4012.7,0.89934114]
[1733614423530,3.2078,4012.9,4012.7,1.79868228]
[1733614423735,3.2078,4012.9,4012.8,0.17427]
[1733614423936,3.2078,4012.9,4012.8,1.1982]
[1733614424140,3.38207,4012.9,4012.8,1.1982]
[1733614424941,3.2078,4012.9,4012.8,1.1982]
[1733614425344,3.2078,4012.9,4012.8,2.09754114]
[1733614426336,3.2078,4012.9,4012.8,3.17115228]
[1733614426839,3.2078,4012.9,4012.8,3.82315228]
[1733614428334,0.17425,4013.4,4013.1,0.17426]
[1733614428533,0.17425,4013.4,4013.2,0.17425]
[1733614428733,3.2078,4013.5,4013.1,0.89934114]
[1733614428734,3.2078,4013.5,4013.4,0.17425]
[1733614429234,3.2078,4013.5,4013.4,1.07359114]
[1733614432037,3.2078,4013.5,4013.4,0.89934114]
[1733614432242,3.2078,4013.5,4012.8,1.1982]
[1733614432436,0.17425,4013.4,4013.3,0.89934114]
[1733614432939,3.38204,4013.5,4013.3,0.89934114]
[1733614433438,3.38204,4013.5,4013.4,0.3989]
[1733614434140,0.17425,4013.4,4013.3,0.89934114]
[1733614434437,0.95535,4013.4,4013.3,0.89934114]
[1733614436745,0.95535,4013.4,4012.8,0.383]
[1733614436746,0.17427,4012.9,4012.8,0.383]
[1733614436937,0.17427,4012.9,4012.8,0.89934114]
[1733614448645,0.17427,4012.9,4012.8,1.79868228]
[1733614449050,0.17427,4012.9,4012.8,0.89934114]
[1733614449549,0.17427,4012.9,4012.8,1.79868228]
[1733614449745,0.17427,4012.9,4012.8,2.76465228]
[1733614450047,0.17427,4012.9,4012.8,2.59038228]
[1733614450745,0.43562,4013.5,4012.9,0.17426]
[1733614450746,0.17426,4013.0,4012.9,0.17426]
[1733614450956,0.17426,4013.0,4012.9,0.3942]
[1733614451548,3.2078,4013.8,4012.9,0.3942]
[1733614451853,3.38203,4013.8,4013.7,0.89934114]
[1733614459858,3.2078,4013.8,4013.6,0.4132]
[1733614460061,3.38203,4013.8,4013.7,0.89934114]
[1733614461955,0.17423,4013.8,4013.7,0.89934114]
[1733614468456,0.43554,4014.2,4013.6,0.4132]
[1733614468663,0.17423,4013.7,4013.6,0.4132]
[1733614468855,0.17423,4013.7,4013.6,1.31254114]
[1733614470961,0.17426,4013.0,4012.9,3.89426061]
[1733614471168,0.17427,4012.8,4012.7,1.2043]
[1733614471957,0.17427,4012.8,4012.7,2.10364114]
[1733614472563,0.17427,4012.8,4012.7,1.2043]
[1733614472760,0.17427,4012.8,4012.7,2.10364114]
[1733614476972,0.17427,4012.8,4012.7,1.2043]
[1733614477174,0.17427,4012.8,4012.7,2.10364114]
[1733614478575,0.1834487,4012.8,4012.7,2.10364114]
[1733614479877,0.1834487,4012.8,4012.7,3.00298228]
[1733614480383,0.1834487,4012.8,4012.7,2.10364114]
[1733614480582,0.1834487,4012.8,4012.7,3.00298228]
[1733614480988,0.1834487,4012.8,4012.7,2.10364114]
[1733614482083,0.20906834,4012.8,4012.7,3.00298228]
[1733614482984,0.20906834,4012.8,4012.7,2.10364114]
[1733614484284,0.20906834,4012.8,4012.7,3.00298228]
[1733614484481,0.20906834,4012.8,4012.7,2.10364114]
[1733614488380,0.1743,4012.2,4012.1,7.10499076]
[1733614488585,0.1743,4012.2,4012.1,4.10714114]
[1733614489188,0.19991964,4012.2,4012.1,4.10714114]
[1733614489786,0.19991964,4012.2,4012.1,3.2078]
[1733614489988,0.19991964,4012.2,4012.1,4.78414114]
[1733614490193,0.19991964,4012.2,4012.1,1.57634114]
[1733614490893,0.17432,4011.6,4011.5,4.57419076]
[1733614491094,0.17432,4011.6,4011.5,1.0686]
[1733614491387,0.17432,4011.6,4011.5,2.86728228]
[1733614491388,0.02561964,4011.6,4011.5,2.86728228]
[1733614491596,0.02561964,4011.6,4011.5,3.04161228]
[1733614491787,0.02561964,4011.6,4011.5,2.86728228]
[1733614491987,0.19993964,4011.6,4011.5,3.04161228]
[1733614492196,0.19993964,4011.6,4011.5,3.82611228]
[1733614492786,0.19993964,4011.6,4011.5,3.65178228]
[1733614493497,0.19993964,4011.6,4011.5,3.82611228]
[1733614493897,0.02561964,4011.6,4011.5,3.82611228]
[1733614495498,0.19993964,4011.6,4011.5,3.82611228]
[1733614498499,0.19993964,4011.6,4011.5,4.02178929]
[1733614499294,0.19993964,4011.6,4011.5,2.75244114]
[1733614499902,0.02561964,4011.6,4011.4,3.2078]